Cogmind - Beta 11 @@@ ROGUE MODE // 2022.03.30 @ 16:04:55 // Winter2019/RPGLIKE Player: IzRey Result: Destroyed by G-47 Trooper with Particle Gun Performance ------------- Evolutions (2) 1000 Regions Visited (5) 1000 Robots Destroyed (74) 370 Value Destroyed (1825) 1825 Prototype IDs (3) 60 Alien Tech Used (0) 0 Bonus (211) 211 TOTAL SCORE: 4466 Bonus ------- High Alert Combat Kills 11 Entered Garrisons 200 Cogmind --------- Core Integrity 0/900 Matter 310/350 Energy 280/280 System Corruption 0% Temperature Cool (18) Movement Treading (145) Location -8/Garrison Parts ------- > --- POWER (1) -------- Heavy Ion Engine > --- PROPULSION (2) --- Advanced Treads Advanced Treads > --- UTILITY (3) ------ Seismic Detector Improved Targeting Computer > --- WEAPON (2) ------- Missile Launcher Katana > --- INVENTORY (4) ---- Advanced Treads Advanced Treads Advanced Beam Cannon Peak State ------------ > --- POWER ------------ Light Nuclear Core > --- PROPULSION ------- Advanced Treads Advanced Treads > --- UTILITY ---------- Structural Scanner Improved Targeting Computer > --- WEAPON ----------- Advanced Beam Cannon Katana > --- INVENTORY -------- Heavy Ion Engine Advanced Treads Advanced Treads Missile Launcher [Rating: 19] Favorites ----------- Power Light Nuclear Core Engine Light Ion Engine Power Core Light Nuclear Core Propulsion Advanced Treads Treads Advanced Treads Wheel Compact Wheel Utility Improved Targeting Computer Device Seismic Detector Storage Small Matter Pod Processor Improved Targeting Computer Protection Light Armor Plating Weapon Katana Energy Gun EM Pulse Gun Energy Cannon Advanced Beam Cannon Ballistic Gun Improved Assault Rifle Ballistic Cannon Light Cannon Launcher Missile Launcher Slashing Weapon Katana Build | -11 -10 -9 -9 -8 -8 ------- Run | Scr Mat Mat Min Mat Gar Slots Evolved 4 | . . 3 1 . . Power . | . . . . . . Propulsion 1 | . . 1 . . . Utility 2 | . . 1 1 . . Weapon 1 | . . 1 . . . Parts Attached 29 | 7 5 15 . . 2 Power 6 | 1 1 3 . . 1 Engine 4 | 1 1 1 . . 1 Core 2 | . . 2 . . . Reactor . | . . . . . . Propulsion 6 | 2 1 3 . . . Treads 4 | 1 . 3 . . . Leg . | . . . . . . Wheel 2 | 1 1 . . . . Hover . | . . . . . . Flight . | . . . . . . Utility 7 | 1 1 5 . . . Device 2 | . . 2 . . . Storage 1 | 1 . . . . . Processor 2 | . 1 1 . . . Hackware . | . . . . . . Protection 2 | . . 2 . . . Artifact . | . . . . . . Weapon 10 | 3 2 4 . . 1 Energy Gun 2 | 2 . . . . . Energy Cannon 1 | . . 1 . . . Ballistic Gun 4 | 1 1 2 . . . Ballistic Cannon 1 | . 1 . . . . Launcher 1 | . . . . . 1 Special Weapon . | . . . . . . Impact Weapon . | . . . . . . Slashing Weapon 1 | . . 1 . . . Piercing Weapon . | . . . . . . Special Melee Weapon . | . . . . . . Unidentified Prototypes 3 | . . 3 . . . Parts Lost 3 | . . 2 . . 1 Power 1 | . . . . . 1 Propulsion . | . . . . . . Utility 2 | . . 2 . . . Weapon . | . . . . . . Highest Loss Streak 1 | . . 1 . . 1 To Critical Strikes . | . . . . . . Average Slot Usage (%) 89 | . 100 86 87 87 86 Engine 9 | . 25 6 . . 5 Core 8 | . . 10 12 12 5 Treads 17 | . . 20 25 25 25 Wheel 7 | . 25 4 . . . Device 5 | . . 6 12 12 12 Processor 9 | . 21 6 12 12 12 Protection 3 | . . 4 . . . Energy Cannon 6 | . . 7 12 12 6 Ballistic Gun 5 | . 12 4 . . . Ballistic Cannon 4 | . 12 3 . . . Slashing Weapon 9 | . . 11 12 12 12 Naked Turns . | . . . . . . Heaviest Build 17 | 5 6 13 12 12 17 Greatest Support 44 | 20 16 44 44 44 44 Greatest Overweight (x) 2 | . . 2 . . . Average Overweight (x) . | . . . . . . Largest Inventory Capacity 4 | . 2 4 4 4 4 Average Capacity 3 | . 1 3 4 4 4 Most Carried 4 | . 2 4 4 4 4 Average Carried 2 | . 1 2 4 4 3 Final Capacity 4 | . 2 4 4 4 4 Final Carried 4 | . 2 4 4 4 3 Class Distribution -------------------- 53% | Mutant 46% | Hacker-Mutant Dominant Class ---------------- Mutant | -10/Materials Hacker-Mutant | -9/Materials Hacker-Mutant | -9/Mines Hacker-Mutant | -8/Materials Hacker-Mutant | -8/Garrison Resources | -11 -10 -9 -9 -8 -8 ----------- Run | Scr Mat Mat Min Mat Gar Matter Collected 1006 | 332 117 512 . . 45 Remotely . | . . . . . . Salvage Created 2093 | 206 180 1519 13 . 175 Parts 125 | 6 16 96 . . 7 Haulers Intercepted 2 | . . 2 . . . Recyclers Shooed . | . . . . . . Parts Field Recycled . | . . . . . . Retrieved Matter . | . . . . . . Parts Self-Destructed . | . . . . . . Prevented . | . . . . . . Kills | -11 -10 -9 -9 -8 -8 ------- Run | Scr Mat Mat Min Mat Gar Combat Hostiles Destroyed 47 | . 10 30 . . 7 Melee 19 | . . 16 . . 3 Guns 6 | . 3 3 . . . Cannons 19 | . 7 11 . . 1 AOE 3 | . . . . . 3 Classes Destroyed 9 | 3 2 4 . . . Worker 12 | 2 . 9 1 . . Tunneler 6 | 4 . 2 . . . Hauler 2 | . . 2 . . . Recycler 3 | 1 . 2 . . . Watcher 4 | . . 4 . . . Swarmer 7 | . 6 . . . 1 Grunt 32 | . 4 22 . . 6 Brawler 1 | . . 1 . . . Sentry 7 | . . 7 . . . Best Kill Streak 8 | 3 6 8 1 . 3 Combat Bots Only 6 | . 6 3 . . 3 Max Kills in Single Turn 1 | 1 1 1 1 . 1 Gunslinging . | . . . . . . Exploded 1 | . . . . . 1 Melee 1 | . . 1 . . 1 Uniques/NPCs Destroyed . | . . . . . . Combat | -11 -10 -9 -9 -8 -8 -------- Run | Scr Mat Mat Min Mat Gar Damage Taken 3081 | 6 293 1751 . . 1031 Core 2427 | 6 238 1344 . . 839 Absorbed by Shields . | . . . . . . Redirected to Core 1763 | . 171 927 . . 665 Core Remaining (%) 85 | 99 70 . 88 . . Volleys Fired 205 | 35 45 106 2 . 17 Largest 1 | 1 1 1 1 . 1 Hottest 68 | 40 35 68 68 . 68 Shots Fired 205 | 35 45 106 2 . 17 Gun 69 | 35 23 11 . . . Cannon 131 | . 22 95 2 . 12 Launcher 5 | . . . . . 5 Special . | . . . . . . Kinetic 137 | 23 45 69 . . . Thermal 51 | . . 37 2 . 12 Explosive 5 | . . . . . 5 Electromagnetic 12 | 12 . . . . . Robot Hit Streak 10 | 10 6 9 3 . 8 Robot Miss Streak 5 | 3 3 5 . . 2 Penetration Max . | . . . . . . Secondary Targets . | . . . . . . Shots Hit Robots 206 | 26 30 125 2 . 23 Core Hits 91 | 12 15 50 1 . 13 Critical Kills 2 | . . 2 . . . Critical Parts Destroyed . | . . . . . . Critical Strikes 10 | 1 . 7 . . 2 Meltdown 1 | . . 1 . . . Destroy 1 | . . 1 . . . Blast 2 | . . 2 . . . Corrupt 1 | 1 . . . . . Sever 5 | . . 3 . . 2 Melee Attacks 97 | . . 83 . . 14 Impact . | . . . . . . Slashing 97 | . . 83 . . 14 Piercing . | . . . . . . Sneak Attacks 9 | . . 9 . . . Combat Hostiles . | . . . . . . Follow-up Attacks . | . . . . . . Damage Inflicted 4941 | 325 399 3285 41 . 891 Guns 519 | 264 125 130 . . . Cannons 1500 | . 274 1023 41 . 162 Explosions 485 | 61 . . . . 424 Melee 2437 | . . 2132 . . 305 Ramming . | . . . . . . Kinetic 1309 | 141 399 769 . . . Thermal 648 | 61 . 384 41 . 162 Explosive 424 | . . . . . 424 Electromagnetic 123 | 123 . . . . . Impact . | . . . . . . Slashing 2437 | . . 2132 . . 305 Piercing . | . . . . . . Highest Corruption 1 | . . 1 1 . . Average Corruption 1 | . . 1 1 . . Corruption Purged . | . . . . . . Corruption Blocked . | . . . . . . Effects 9 | . . 7 2 . . Message Errors 1 | . . . 1 . . Matter Fused 1 | . . 1 . . . Heat Flow Errors 4 | . . 4 . . . Energy Discharges 1 | . . 1 . . . Data Loss (minor) 2 | . . 1 1 . . Overload Shots . | . . . . . . Overflow Damage 133 | . . 128 . . 5 Projectiles 30 | . . 30 . . . Explosions 5 | . . . . . 5 Melee 98 | . . 98 . . . Knockbacks 10 | . 3 7 . . . Impact . | . . . . . . Kinetic 9 | . 3 6 . . . Secondary 1 | . . 1 . . . Self-Inflicted Damage 36 | 6 . . . . 30 Shots 2 | 1 . . . . 1 Rammed . | . . . . . . Targets Rammed . | . . . . . . Kicked . | . . . . . . Crushed . | . . . . . . Highest Temperature 293 | 12 3 293 20 . 246 Average Temperature 70 | 12 3 72 15 . 86 Received Heat Transfer 1485 | . 102 834 . . 549 Effects 3 | . . 3 . . . Interference 3 | . . 3 . . . Siege Activations . | . . . . . . Robots Corrupted . | . . . . . . Combat Hostiles . | . . . . . . Parts Fried 1 | 1 . . . . . Impact Corruptions . | . . . . . . Robots Melted 1 | . . 1 . . . Combat Hostiles . | . . . . . . Parts Melted 1 | . . 1 . . . Heat Transferred 1186 | 150 . 666 74 . 296 Parts Sabotaged . | . . . . . . Parts Stolen . | . . . . . . Parts Stripped . | . . . . . . Power Chain Reactions 1 | 1 . . . . . Missiles Intercepted . | . . . . . . Alert | -11 -10 -9 -9 -8 -8 ------- Run | Scr Mat Mat Min Mat Gar Peak Influence 419 | 35 202 419 126 48 196 Initial 121 | . 22 59 121 48 31 Average 210 | 16 116 257 126 48 110 Maximum Alert Level 2 | . 1 2 . . . Low Security (%) 42 | 100 99 17 100 100 100 Level 1 56 | . . 81 . . . Level 2 . | . . 1 . . . Level 3 . | . . . . . . Level 4 . | . . . . . . Level 5 . | . . . . . . High Security . | . . . . . . Max Security . | . . . . . . Squads Dispatched 6 | . 2 4 . . . Investigation 2 | . . 2 . . . Extermination . | . . . . . . Reinforcement 4 | . 2 2 . . . Assault . | . . . . . . Garrison . | . . . . . . Intercept . | . . . . . . Searches Triggered . | . . . . . . Construction Impeded . | . . . . . . Haulers Reinforced . | . . . . . . Active Scanning Responses . | . . . . . . Cargo Convoy Interrupts . | . . . . . . Stealth | -11 -10 -9 -9 -8 -8 --------- Run | Scr Mat Mat Min Mat Gar Distress Signals 4 | . . 2 1 . 1 Communications Jammed . | . . . . . . Distress Signals . | . . . . . . Times Spotted 91 | . 19 59 . . 13 Peak Tracking Total 7 | . 7 7 . . 5 Tactical Retreats 11 | . . 11 . . . Traps | -11 -10 -9 -9 -8 -8 ------- Run | Scr Mat Mat Min Mat Gar Traps Triggered 4 | . . 4 . . . Indirectly . | . . . . . . Trap Hack Attempts . | . . . . . . Triggered . | . . . . . . Disarmed . | . . . . . . Reprogrammed 4 | . . 4 . . . Reused . | . . . . . . Traps Extracted . | . . . . . . Installed . | . . . . . . Triggered . | . . . . . . Machines | -11 -10 -9 -9 -8 -8 ---------- Run | Scr Mat Mat Min Mat Gar Machines Disabled 3 | . . 3 . . . Max in Single Turn 1 | . . 1 . . . Machines Sabotaged . | . . . . . . Garrisons Compromised . | . . . . . . Overloaded Fab Kills . | . . . . . . Hacking | -11 -10 -9 -9 -8 -8 --------- Run | Scr Mat Mat Min Mat Gar Machines Accessed 19 | . 8 10 . 1 . Terminals 15 | . 6 9 . . . Fabricators . | . . . . . . Repair Stations 1 | . 1 . . . . Recycling Units 2 | . 1 1 . . . Scanalyzers . | . . . . . . Garrison Access 1 | . . . . 1 . Total Hacks 54 | . 17 36 . 1 . Successful 35 | . 11 23 . 1 . Failed 19 | . 6 13 . . . Catastrophic 3 | . 2 1 . . . Database Lockouts . | . . . . . . Manual 39 | . 10 29 . . . Terminals 48 | . 13 35 . . . Fabricators . | . . . . . . Repair Stations 1 | . 1 . . . . Recycling Units 4 | . 3 1 . . . Scanalyzers . | . . . . . . Garrison Access 1 | . . . . 1 . Terminal Hacks 11 | . 2 9 . . . Record 1 | . . 1 . . . Robot Analysis 3 | . . 3 . . . Branch Access Points 1 | . 1 . . . . Unreport Threat 3 | . . 3 . . . Locate Traps 1 | . . 1 . . . Reprogram Traps 1 | . . 1 . . . Hauler Manifests 1 | . 1 . . . . Fabricator Hacks . | . . . . . . Repair Station Hacks 1 | . 1 . . . . Scan Component 1 | . 1 . . . . Recycling Unit Hacks 3 | . 2 1 . . . Retrieve Matter 1 | . 1 . . . . Retrieve Components 2 | . 1 1 . . . Scanalyzer . | . . . . . . Garrison Access Hacks 1 | . . . . 1 . Unlock Access 1 | . . . . 1 . Unauthorized Hacks 19 | . 6 13 . . . Terminals 18 | . 5 13 . . . Track 3 | . . 3 . . . Botnet 13 | . 5 8 . . . Disrupt 2 | . . 2 . . . Fabricators . | . . . . . . Repair Stations . | . . . . . . Recycling Units 1 | . 1 . . . . Monitor 1 | . 1 . . . . Scanalyzers . | . . . . . . Garrison Access . | . . . . . . Data Cores Recovered . | . . . . . . Used . | . . . . . . Hacking Detections 12 | . 5 7 . . . Full Trace Events 4 | . . 4 . . . Feedback Events 1 | . . 1 . . . Corruption 1 | . . 1 . . . Feedback Blocked . | . . . . . . Robot Schematics Acquired . | . . . . . . Robots Built . | . . . . . . Authchips . | . . . . . . Time . | . . . . . . Total Robot Build Rating . | . . . . . . Part Schematics Acquired . | . . . . . . Parts Built . | . . . . . . Authchips . | . . . . . . Time . | . . . . . . Total Part Build Rating . | . . . . . . Parts Repaired . | . . . . . . Time . | . . . . . . Parts Recycled . | . . . . . . Recycled Matter . | . . . . . . Retrieved Matter . | . . . . . . Retrieved Components 16 | . 6 10 . . . Parts Scanalyzed . | . . . . . . Part Schematics Acquired . | . . . . . . Parts Damaged . | . . . . . . Bothacking | -11 -10 -9 -9 -8 -8 ------------ Run | Scr Mat Mat Min Mat Gar Used RIF Installer . | . . . . . . Robots Hacked . | . . . . . . Non-combat . | . . . . . . Combat . | . . . . . . Robot Hacks Applied . | . . . . . . Relay Couplers Released . | . . . . . . Fabnet Peak Effective % . | . . . . . . Robots Rewired . | . . . . . . Allies Hacked . | . . . . . . Hacks Repelled . | . . . . . . Allies | -11 -10 -9 -9 -8 -8 -------- Run | Scr Mat Mat Min Mat Gar Total Allies . | . . . . . . Largest Group . | . . . . . . Highest-Rated Group . | . . . . . . Highest-Rated Ally . | . . . . . . Total Orders . | . . . . . . Ally Attacks . | . . . . . . Total Damage . | . . . . . . Kills . | . . . . . . Allies Corrupted . | . . . . . . Allies Melted . | . . . . . . Intel | -11 -10 -9 -9 -8 -8 ------- Run | Scr Mat Mat Min Mat Gar Robot Analysis Total 3 | . . 3 . . . Derelict Logs Recovered . | . . . . . . Drone Launches . | . . . . . . Drone Recoveries . | . . . . . . Exploration | -11 -10 -9 -9 -8 -8 ------------- Run | Scr Mat Mat Min Mat Gar Turns Passed 3882 | 178 612 2714 122 31 225 Spaces Moved 2303 | 121 492 1491 79 21 99 Core 10 | 8 . 2 . . . Treads 1400 | 8 . 1193 79 21 99 Legs . | . . . . . . Wheels 893 | 105 492 296 . . . Hover . | . . . . . . Flight . | . . . . . . Fastest Speed 50 | 50 80 100 145 145 145 Average Speed 126 | 83 98 136 145 145 145 Slowest Speed 160 | 160 100 150 145 145 145 Overloaded Moves . | . . . . . . Propulsion Burnouts . | . . . . . . Robots Hopped . | . . . . . . Cave-ins Triggered . | . . . . . . Exploration Rate (%) 39 | 4 95 94 15 4 23 Regions Visited 5 Branch Regions 1 Pre-discovered Areas . | . . . . . . Known Exits Taken 1 | . . . . 1 . Unknown Exits Taken 4 | 1 1 1 1 . . Scrap Searched . | . . . . . . Spaces Dug 17 | . . 17 . . . Terrain Destroyed 59 | 4 . 17 . . 38 Melee 17 | . . 17 . . . Projectile . | . . . . . . AOE 42 | 4 . . . . 38 Terrain Rammed . | . . . . . . Walls Destroyed . | . . . . . . Machines Disabled . | . . . . . . Actions | -11 -10 -9 -9 -8 -8 --------- Run | Scr Mat Mat Min Mat Gar Total 2931 | 165 577 1943 84 21 141 Wait 206 | . 24 171 4 . 7 Move 2299 | 120 491 1490 78 21 99 Hop . | . . . . . . Pick Up 5 | . 2 3 . . . Fast Attach 22 | 7 4 11 . . . Attach 2 | . . 1 . . 1 Detach 3 | . 1 2 . . . Swap 5 | . 1 3 . . 1 Drop 15 | 3 5 7 . . . Fire 205 | 35 45 106 2 . 17 Melee 97 | . . 83 . . 14 Ram . | . . . . . . Kick . | . . . . . . Crush . | . . . . . . Escape Stasis . | . . . . . . Rewire . | . . . . . . Trap . | . . . . . . Miscellaneous 72 | . 4 66 . . 2 Route ------- -11/Scrapyard -10/Materials (discovered 4 exits: *Mat x3 / *Min) -9/Materials (discovered 4 exits: *Mat x3 / [*Min]) -9/Mines -8/Materials -8/Garrison History --------- Turn | Location | Event 4 | -11/Scrapyard | Discovered new exit (range 15) 179 | -11/Scrapyard | Entered Materials 269 | -10/Materials | Discovered new exit (range 10) 295 | -10/Materials | Discovered new exit (range 16) 313 | -10/Materials | Build established: Mutant 426 | -10/Materials | Identified exit to Mines 449 | -10/Materials | Discovered new exit (range 11) 667 | -10/Materials | Discovered new exit (range 4) 791 | -10/Materials | Entered another Materials area 793 | -9/Materials | Reached level 2 919 | -9/Materials | Reached level 3 1178 | -9/Materials | Core integrity fell below 50% 1195 | -9/Materials | Discovered new exit (range 10) 1429 | -9/Materials | Reached level 4 1554 | -9/Materials | Upgraded with Propulsion slot (x1) 1554 | -9/Materials | Upgraded with Utility slot (x1) 1554 | -9/Materials | Upgraded with Weapon slot (x1) 1867 | -9/Materials | Reached level 5 2088 | -9/Materials | Discovered new exit (range 16) 2385 | -9/Materials | Build established: Hacker-Mutant 2825 | -9/Materials | Discovered new exit (range 14) 2896 | -9/Materials | Discovered new exit (range 15) 3505 | -9/Materials | Entered Mines 3507 | -9/Mines | Reached level 6 3509 | -9/Mines | Upgraded with Utility slot (x1) 3561 | -9/Mines | Assembled infested the area 3566 | -9/Mines | Assisted by a Guerilla fighting off Assembled 3614 | -9/Mines | Discovered new exit (range 7) 3627 | -9/Mines | Entered Materials 3629 | -8/Materials | Reached level 7 3658 | -8/Materials | Identified exit to Garrison 3658 | -8/Materials | Entered Garrison 3692 | -8/Garrison | Triggered checkpoint 3740 | -8/Garrison | Core integrity fell below 50% 3783 | -8/Garrison | Core integrity fell below 20% 3874 | -8/Garrison | Triggered checkpoint 3883 | -8/Garrison | Destroyed by G-47 Trooper with Particle Gun Last Messages --------------- 03712_ G-47 Trooper destroyed. 03768_ Lgt. Nuclear Core destroyed. 03780_ Destroyed Lgt. Angular Momentum Engine. 03784_ Destroyed Adv. Heat Sink. 03784_ G-47 Trooper destroyed. 03787_ G-50 Soldier destroyed. 03788_ The unstable cave ceiling collapses. 03792_ G-47 Trooper Lgt. Nuclear Core severed. 03794_ G-47 Trooper destroyed. 03796_ Protomatter-26 decays. 03796_ W-25 Informer springs to life. 03803_ The unstable cave ceiling collapses. 03807_ Acquired 20 matter. 03811_ The unstable cave ceiling collapses. 03811_ Acquired 25 matter. 03821_ W-25 Informer sends out distress signal. 03830_ S-10 Pest destroyed. 03836_ Used Protomatter to restore core integrity (+12, depleted) 03839_ The unstable cave ceiling collapses. Map ----- +----------------------------------------------------+ | ?????????????????????????????????????????????????? | | ?????????????????????????????????????????????????? | | ?????????????????????????????????????????????????? | | ?????????????????????????????????????????????????? | | ?????????????????????????????????????????????????? | | ?????????????????????????????????????????????????? | | ?????????????????????????????????????????????????? | | ?????????????????????????????????????????????????? | | ?????????????????????????????????????????????????? | | ?????????????????????????????????????????????????? | | ?????????????????????????????????????????????????? | | ?????????????????????????????????????????????????? | | ?????????????????????????????????????????????????? | | ?????????????????????????????????????????????????? | | ????????????????????????#####??#?????????????????? | | ???????????????????????? ?? ?????????????????? | | ????????????????????????? ??? ?????????????????? | | ????????????????????????? ??? ?????????????????? | | ?????????????????????????#g#??? ?????????????????? | | ?????????????????????????# #??? ?????????????????? | | ????????????????????????## ## " ?????????????????? | | ????????????????????????#gg + " #????????????????? | | ????????????????????????# ### " #????????????????? | | ????????????????????????# #???# #????????????????? | | ????????????????????????# #???# #????????????????? | | ????????????????????????#@#???# #????????????????? | | ????????????????????????# #???# #????????????????? | | ????????????????????????# #???# #???#####????????? | | ????????????????????????# #???# #???# #????????? | | ????????????????????????# #?### ##### #????????? | | ??????????????????####### ### #????????? | | ??????????????????# + #????????? | | ??????????????????# ##### ###* ##########????????? | | ????????????????????????# # #??????????????? | | ????????????????????????# # #####???????????? | | ??????## ##""""######### # # #???????????? | | ??????# ## ##??????????? | | ??????# [ #??????????? | | ??????# %= * # # ##??????????? | | ???????????# ## =#### ## #???????????? | | ???????????#?????# #?## # # ######???????????? | | ???????????????? ?# #######????????????????? | | ?????????????? ?####??????????????????????? | | ???????????? ??????????????????????????? | | ?????????? ??????????????????????????? | | ???????? ## ## ###?????????????????????????? | | ??????? ???# ?# #???????????????????????????? | | ?????????? ?? ???????????????????????????? | | ????????? ??? ???????????????????????????? | | ????????? ???? #???????????????????????????? | +----------------------------------------------------+ Best States ------------- Heat Dissipation 31 Energy Generation 14 Energy Capacity 280 Matter Stores 350 Matter Capacity 350 Sight Range 16 Robot Scan Range 12 Terrain Scan Density 885 Armor Coverage 150 Evasion (%) 44 Targeting Accuracy 6 Recoil Reduction 2 Offensive Hacking 15 Defensive Hacking 10 Item Schematics ----------------- None Robot Schematics ------------------ None Fabricated ------------ Nothing Alien Tech Used ----------------- None Achievements -------------- Armchair Analyst Challenges ------------ None RPGLIKE | -11 -10 -9 -9 -8 -8 --------- Run | Scr Mat Mat Min Mat Gar Levels Raised 6 | . . 4 1 1 . XP Earned 13350 | 3000 1280 5720 500 1500 1350 XP Spent 10345 | . 2995 5950 1400 . . Upgrades 38 | . 17 19 2 . . Propulsion Slot 1 | . . 1 . . . Utility Slot 2 | . . 1 1 . . Weapon Slot 1 | . . 1 . . . Core Integrity 6 | . . 6 . . . Heat Dissipation 1 | . 1 . . . . Matter Storage 1 | . . 1 . . . Inventory Capacity 4 | . 2 2 . . . Sensor Range 6 | . 6 . . . . Terrain Scan Density 8 | . 8 . . . . Ranged Accuracy 1 | . . 1 . . . Melee Accuracy 2 | . . 2 . . . Hack Attack % 3 | . . 2 1 . . Hack Defense % 2 | . . 2 . . . Protomatter Created 646 | . 61 511 . . 74 Integrity Restored 1523 | . 69 1418 . . 36 Core 1523 | . 69 1418 . . 36 Protomatter Decayed 101 | . 38 37 . . 26 Game ------ Seed ThrowingEnergyTerrabomb Manual? 0 Play Time 01:00:37 Cumulative 460.5 hours Start 2022.03.18 @ 23:04:54 End 2022.03.30 @ 16:04:55 Sessions 5 Manual Loads 0 Difficulty Rogue Special Mode Winter2019/RPGLIKE Game No. 20 Rogue 3 Adventurer 17 Explorer 0 Win Type - Total 1 Types 1/0/0/0/0/0/0/0/0 Lore% 34 Gallery% 54 Achievement% 43 Wizard Run 0 Options --------- ASCII 0 Keyboard 1 Movement Vi Keybinds 0 Fullscreen 1 Font 18/X11Bold Map View 66x50 Tactical HUD 1 Map Filters NONE Filters NONE Steam 1 RUN: 34f7b7ba-1be1-423b-a22c-b897f154bd3d